bitfinex/quotes_BTCUSD_20240902
["timestamp","ask_amount","ask_price","bid_price","bid_amount"]
[1725246664193,0.000818,57835.0,57833.0,0.08880395]
[1725246664456,0.000818,57835.0,57833.0,0.24761158]
[1725246664671,0.000818,57835.0,57834.0,0.0762]
[1725246664885,0.000818,57835.0,57834.0,0.1387]
[1725246665116,0.000818,57835.0,57834.0,0.15130203]
[1725246665337,0.02795299,57835.0,57834.0,0.15130203]
[1725246666004,0.20085799,57835.0,57834.0,0.15130203]
[1725246666671,0.54666899,57835.0,57834.0,0.08880203]
[1725246666878,0.172917,57831.0,57830.0,0.0611]
[1725246667319,0.54588854,57831.0,57830.0,0.07370973]
[1725246667528,0.91472354,57831.0,57830.0,0.0611]
[1725246670224,0.91472354,57831.0,57829.0,0.0775]
[1725246670225,0.518761,57830.0,57829.0,0.0775]
[1725246670460,0.172932,57826.0,57825.0,0.1386]
[1725246670680,0.864662,57826.0,57825.0,0.1386]
[1725246671323,0.864662,57826.0,57825.0,0.15121936]
[1725246671547,0.864662,57826.0,57825.0,0.1386]
[1725246671967,0.864662,57826.0,57825.0,0.0775]
[1725246672188,0.964662,57826.0,57825.0,0.0775]
[1725246673017,1.333527,57826.0,57825.0,0.0775]
[1725246678486,0.345889,57822.0,57821.0,0.0008998]
[1725246678685,1.590614,57822.0,57821.0,0.0008998]
[1725246678928,2.2777535,57822.0,57821.0,0.0008998]
[1725246679156,1.3855025,57822.0,57821.0,0.0008998]
[1725246679363,0.987722,57822.0,57821.0,0.1369998]
[1725246679770,1.01486385,57822.0,57821.0,0.1369998]
[1725246680901,0.64597485,57822.0,57821.0,0.1369998]
[1725246681106,0.12714185,57822.0,57821.0,0.1369998]
[1725246681314,0.02714185,57822.0,57821.0,0.1369998]
[1725246681523,0.02714185,57822.0,57821.0,0.14962686]
[1725246681730,0.20008585,57822.0,57821.0,0.14962686]
[1725246681931,0.30008585,57822.0,57821.0,0.14962686]
[1725246682174,0.02714185,57822.0,57821.0,0.14962686]
[1725246683638,0.02795985,57822.0,57821.0,0.14962686]
[1725246684509,0.02795985,57822.0,57821.0,0.32257386]
[1725246685238,0.000818,57822.0,57821.0,0.32257386]
[1725246685474,0.000818,57822.0,57821.0,0.66846886]
[1725246690298,0.000818,57822.0,57821.0,1.01436386]
[1725246690955,0.000818,57822.0,57821.0,1.52065505]
[1725246691410,0.000818,57822.0,57821.0,1.52265505]
[1725246693205,0.000818,57822.0,57821.0,1.52065505]
[1725246693429,0.000818,57822.0,57821.0,1.17476005]
[1725246693625,0.000818,57822.0,57821.0,1.01436386]
[1725246695711,0.000818,57822.0,57821.0,0.14962686]
[1725246697423,0.345853,57828.0,57821.0,0.14962686]
[1725246697633,0.172939,57824.0,57821.0,0.14962686]
[1725246699330,0.172944,57822.0,57821.0,0.08962686]
[1725246699537,0.518833,57822.0,57821.0,0.08962686]
[1725246700409,0.864722,57822.0,57821.0,0.08962686]
[1725246700622,0.172944,57822.0,57821.0,0.0769998]
[1725246700842,0.345859,57827.0,57821.0,0.0769998]
[1725246701057,0.172934,57826.0,57824.0,0.0767]
[1725246701292,0.02713807,57831.0,57824.0,0.0767]
[1725246701516,0.02713807,57831.0,57830.0,0.33331619]
[1725246701717,0.02713807,57831.0,57830.0,0.659761]
[1725246701953,0.02713807,57831.0,57830.0,0.83276692]
[1725246702156,0.172897,57838.0,57831.0,0.486832]
[1725246702393,0.02713384,57844.0,57834.0,1.16453819]
[1725246702635,0.02713384,57844.0,57834.0,1.29520042]
[1725246702855,0.02713384,57844.0,57834.0,1.64101742]
[1725246703060,0.172861,57850.0,57834.0,1.64101742]
[1725246703262,0.02712991,57852.0,57834.0,1.64101742]
[1725246703472,0.02712991,57852.0,57834.0,1.64301742]
[1725246703473,0.172862,57850.0,57834.0,1.64301742]
[1725246703901,0.02712991,57852.0,57834.0,1.64601742]
[1725246704104,0.02712991,57852.0,57834.0,1.64801742]
[1725246704749,0.02712991,57852.0,57834.0,1.64601742]
[1725246704965,0.02712991,57852.0,57834.0,1.64801742]
[1725246705190,0.19998691,57852.0,57834.0,1.64801742]
[1725246705415,0.19998691,57852.0,57834.0,1.66201742]
[1725246705416,0.001818,57835.0,57834.0,1.66201742]
[1725246705640,0.000818,57835.0,57834.0,1.64801742]
[1725246706064,0.001818,57835.0,57834.0,1.66201742]
[1725246706753,0.001818,57835.0,57834.0,1.66001742]
[1725246706967,0.001818,57835.0,57834.0,1.66201742]
[1725246707170,0.001818,57835.0,57834.0,1.64801742]
[1725246707378,0.000818,57835.0,57834.0,1.64601742]
[1725246707636,0.001818,57835.0,57834.0,1.66001742]
[1725246707848,0.000818,57835.0,57834.0,1.87577422]
[1725246708051,0.000818,57835.0,57834.0,1.87377422]
[1725246708255,0.001818,57835.0,57834.0,1.88777422]
[1725246709137,0.000818,57835.0,57834.0,1.87377422]
[1725246709382,0.000818,57835.0,57834.0,2.04432586]
[1725246709600,0.000818,57835.0,57834.0,2.04232586]
[1725246710517,0.001818,57835.0,57834.0,2.05632586]
[1725246713535,0.001818,57835.0,57834.0,2.06405179]
[1725246713997,0.000818,57835.0,57834.0,2.05005179]
[1725246714227,0.000818,57835.0,57834.0,2.05205179]
[1725246714427,0.000818,57835.0,57834.0,2.05832586]
[1725246714428,0.001818,57835.0,57834.0,2.05832586]
[1725246715506,0.001818,57835.0,57834.0,2.05632586]
[1725246717237,0.001818,57835.0,57834.0,2.05832586]
[1725246725984,0.001818,57835.0,57834.0,1.91672586]
[1725246726206,0.001818,57835.0,57834.0,1.57090886]
[1725246726444,0.001818,57835.0,57834.0,0.89114403]
[1725246726658,0.001818,57835.0,57834.0,0.54532703]
[1725246726904,0.140518,57835.0,57834.0,0.19951003]
[1725246727127,0.6732858,57835.0,57834.0,0.02660203]
[1725246727334,0.659234,57835.0,57834.0,0.02660203]
[1725246727542,0.659234,57835.0,57834.0,0.014]
[1725246727543,1.013288,57835.0,57834.0,0.014]
[1725246727765,1.186194,57835.0,57830.0,0.0008998]
[1725246727998,0.172913,57833.0,57830.0,0.0008998]
[1725246728212,0.172916,57832.0,57830.0,0.0008998]
[1725246728421,0.311617,57831.0,57830.0,0.0008998]
[1725246729075,0.311617,57831.0,57830.0,0.0028998]
[1725246729300,0.657452,57831.0,57830.0,0.0028998]
[1725246731158,0.657452,57831.0,57830.0,0.0008998]
[1725246731398,0.657452,57831.0,57830.0,0.0058998]
[1725246732290,0.657452,57831.0,57830.0,0.0008998]
[1725246732716,0.658452,57831.0,57830.0,0.0078998]
[1725246732925,0.312617,57831.0,57830.0,0.0078998]
[1725246733181,0.658452,57831.0,57830.0,0.0078998]
[1725246734018,1.004287,57831.0,57830.0,0.0078998]
[1725246734221,1.003287,57831.0,57830.0,0.0008998]
[1725246734635,1.003287,57831.0,57830.0,0.0058998]
[1725246734881,1.003287,57831.0,57830.0,0.0008998]
[1725246735295,1.004287,57831.0,57830.0,0.0078998]
[1725246735483,1.004287,57831.0,57830.0,0.0008998]
[1725246735484,1.003287,57831.0,57830.0,0.0008998]
[1725246735975,1.003287,57831.0,57830.0,0.0038998]
[1725246736181,1.003287,57831.0,57830.0,0.0008998]
[1725246737950,1.472122,57831.0,57830.0,0.0008998]
[1725246738160,1.472122,57831.0,57830.0,0.0028998]
[1725246739078,1.472122,57831.0,57830.0,0.0008998]
[1725246739289,1.472122,57831.0,57830.0,0.0018998]
[1725246741094,1.817957,57831.0,57830.0,0.0018998]
[1725246741315,2.514931,57831.0,57830.0,0.0018998]
[1725246743565,3.251404,57831.0,57830.0,0.0018998]
[1725246743772,2.753612,57831.0,57830.0,0.0018998]
[1725246743983,2.623448,57831.0,57830.0,0.0018998]
[1725246744206,2.097313,57831.0,57830.0,0.0018998]
[1725246744387,2.032017,57831.0,57830.0,0.0018998]
[1725246744660,2.232017,57831.0,57830.0,0.0018998]
[1725246750872,2.577852,57831.0,57830.0,0.0018998]
[1725246751148,2.232017,57831.0,57830.0,0.0018998]
[1725246751646,2.577852,57831.0,57830.0,0.0018998]
[1725246752370,1.5565,57822.0,57821.0,0.0008998]
[1725246752579,1.87769619,57822.0,57821.0,0.0008998]
[1725246752784,1.97569619,57822.0,57821.0,0.0008998]
[1725246753209,4.62528733,57822.0,57821.0,0.0008998]
[1725246753420,4.61432333,57822.0,57821.0,0.0008998]
[1725246753633,4.38520833,57822.0,57821.0,0.0008998]
[1725246753867,3.46685433,57822.0,57821.0,0.0008998]
[1725246754071,3.42104333,57822.0,57821.0,0.0008998]
[1725246755410,3.72842645,57822.0,57821.0,0.0008998]
[1725246755854,3.73842645,57822.0,57821.0,0.0018998]
[1725246756282,3.72842645,57822.0,57821.0,0.0008998]
[1725246756511,3.76400771,57822.0,57821.0,0.0008998]
[1725246759313,3.76200771,57822.0,57821.0,0.0008998]
[1725246759517,3.57826371,57822.0,57821.0,0.0008998]
[1725246759938,3.57626371,57822.0,57821.0,0.0008998]
[1725246760142,3.39455871,57822.0,57821.0,0.0008998]
[1725246761638,4.17649973,57822.0,57821.0,8e-07]
[1725246761856,3.25089419,57822.0,57821.0,8e-07]
[1725246762099,0.881825,57815.0,57814.0,6e-07]
[1725246762327,1.65415119,57815.0,57814.0,6e-07]
[1725246762540,1.70247565,57815.0,57814.0,6e-07]
[1725246762756,2.42024769,57815.0,57814.0,6e-07]
[1725246762979,2.44739961,57815.0,57814.0,6e-07]
[1725246763394,2.45057472,57815.0,57814.0,6e-07]
[1725246764031,2.45057472,57815.0,57810.0,4e-07]
[1725246764032,2.22104319,57811.0,57810.0,4e-07]
[1725246764291,2.22104319,57811.0,57791.0,0.008998]
[1725246764292,1.02283,57808.0,57791.0,0.008998]
[1725246764526,1.59936621,57803.0,57791.0,0.008998]
[1725246764747,2.29137021,57803.0,57791.0,0.008998]
[1725246764988,2.06636821,57803.0,57791.0,0.008998]
[1725246765192,2.06836821,57803.0,57791.0,0.008998]
[1725246765433,5.15970121,57803.0,57791.0,0.008998]
[1725246765636,5.01312421,57803.0,57791.0,0.008998]
[1725246765843,4.29345397,57803.0,57791.0,0.008998]
[1725246766057,4.10854697,57803.0,57791.0,0.008998]
[1725246767167,3.59929497,57803.0,57791.0,0.008998]
[1725246768031,3.59929497,57803.0,57802.0,0.006785]
[1725246769582,1.88194578,57803.0,57802.0,0.006785]
[1725246769808,1.66929378,57803.0,57802.0,0.006785]
[1725246770007,1.82968997,57803.0,57802.0,0.006785]
[1725246770205,1.83468997,57803.0,57802.0,0.006785]
[1725246770381,1.82968997,57803.0,57802.0,0.006785]
[1725246770590,1.83468997,57803.0,57802.0,0.006785]
[1725246771260,1.82968997,57803.0,57802.0,0.006785]
[1725246771804,1.66929378,57803.0,57802.0,0.006785]
[1725246771990,1.65165078,57803.0,57802.0,0.006785]
[1725246772207,1.28264878,57803.0,57802.0,0.006785]
[1725246772563,1.62865078,57803.0,57802.0,0.006785]
[1725246773430,1.65165078,57803.0,57802.0,0.006785]
[1725246776630,1.36116278,57803.0,57802.0,0.006785]
[1725246776896,1.55327778,57803.0,57802.0,0.006785]
[1725246777098,1.49595378,57803.0,57802.0,0.006785]
[1725246778233,1.32295278,57803.0,57802.0,0.006785]
[1725246778434,1.49595378,57803.0,57802.0,0.006785]
[1725246778642,1.49677178,57803.0,57802.0,0.006785]
[1725246779064,1.84277378,57803.0,57802.0,0.006785]
[1725246779481,1.49677178,57803.0,57802.0,0.006785]
[1725246780919,1.84277378,57803.0,57802.0,0.006785]
[1725246781569,3.36604397,57803.0,57802.0,0.006785]
[1725246781730,3.50874397,57803.0,57802.0,0.006785]
[1725246781928,3.86674597,57803.0,57802.0,0.006785]
[1725246782167,3.89806935,57803.0,57802.0,0.006785]
[1725246783503,4.21274797,57803.0,57802.0,0.006785]
[1725246783727,4.21274797,57803.0,57802.0,1e-06]
[1725246784635,3.86674597,57803.0,57802.0,1e-06]
[1725246785274,3.9163859,57803.0,57802.0,1e-06]
[1725246785481,4.21074797,57803.0,57802.0,1e-06]
[1725246785893,4.2643879,57803.0,57802.0,1e-06]
[1725246786098,4.26450647,57803.0,57802.0,1e-06]
[1725246786307,4.24418992,57803.0,57802.0,1e-06]
[1725246786510,4.29586313,57803.0,57802.0,1e-06]
[1725246786717,4.29386313,57803.0,57802.0,1e-06]
[1725246787381,4.24418992,57803.0,57802.0,1e-06]
[1725246787594,4.2958632,57803.0,57802.0,1e-06]
[1725246787808,4.2938632,57803.0,57802.0,1e-06]
[1725246788221,4.32164981,57803.0,57802.0,1e-06]
[1725246789991,4.32164981,57803.0,57797.0,1e-06]
[1725246789992,1.46367121,57798.0,57797.0,1e-06]
[1725246790238,1.64887121,57798.0,57797.0,1e-06]
[1725246790484,6.62561021,57798.0,57797.0,1e-06]
[1725246790703,7.01691208,57798.0,57797.0,1e-06]
[1725246791397,6.96250108,57798.0,57797.0,1e-06]
[1725246792223,7.01417917,57798.0,57797.0,1e-06]
[1725246792437,7.36021117,57798.0,57797.0,1e-06]
[1725246793050,6.96250108,57798.0,57797.0,1e-06]
[1725246793251,7.01417917,57798.0,57797.0,1e-06]
[1725246793461,7.01422106,57798.0,57797.0,1e-06]
[1725246793673,7.01222106,57798.0,57797.0,1e-06]
[1725246793875,7.35825306,57798.0,57797.0,1e-06]
[1725246794089,7.54295306,57798.0,57797.0,1e-06]
[1725246794293,7.30653308,57798.0,57797.0,1e-06]
[1725246795144,7.35826704,57798.0,57797.0,1e-06]
[1725246795345,7.38405022,57798.0,57797.0,1e-06]
[1725246795589,7.04001822,57798.0,57797.0,1e-06]
[1725246796234,6.77849794,57798.0,57797.0,1e-06]
[1725246796457,6.67521808,57798.0,57797.0,1e-06]
[1725246796672,6.61301808,57798.0,57797.0,1e-06]
[1725246797149,6.69068444,57798.0,57797.0,1e-06]
[1725246797371,6.71629794,57798.0,57797.0,1e-06]
[1725246797589,6.61301808,57798.0,57797.0,1e-06]
[1725246798437,6.74259775,57798.0,57797.0,1e-06]
[1725246798859,7.08429175,57798.0,57797.0,1e-06]
[1725246799069,6.95271208,57798.0,57797.0,1e-06]
[1725246799273,7.29874408,57798.0,57797.0,1e-06]
[1725246799493,6.95271208,57798.0,57797.0,1e-06]
[1725246800639,6.95471208,57798.0,57797.0,1e-06]
[1725246801313,7.46966387,57798.0,57797.0,0.001001]
[1725246801521,7.12237479,57798.0,57797.0,0.001001]
[1725246801750,6.42761279,57798.0,57797.0,0.001001]
[1725246801967,6.77364479,57798.0,57797.0,0.001001]
[1725246802413,6.61798208,57798.0,57797.0,0.001001]
[1725246804400,6.62698008,57798.0,57797.0,0.001001]
[1725246805278,6.70518008,57798.0,57797.0,0.001001]
[1725246805503,6.7020036,57798.0,57797.0,0.001001]
[1725246806177,6.6380061,57798.0,57797.0,0.001001]
[1725246807507,6.67267294,57798.0,57797.0,0.001001]
[1725246810320,2.266442,57792.0,57791.0,0.008998]
[1725246810538,7.39875381,57792.0,57791.0,0.008998]
[1725246810749,7.49875381,57792.0,57791.0,0.008998]
[1725246811013,7.51686566,57792.0,57791.0,0.008998]
[1725246811269,0.178061,57783.0,57777.0,0.1451]
[1725246811481,0.97870369,57783.0,57759.0,0.4771]
[1725246811712,0.002,57782.0,57781.0,4.7e-07]
[1725246811965,6.00629987,57782.0,57781.0,4.7e-07]
[1725246812168,2.05084387,57782.0,57781.0,4.7e-07]
[1725246812372,2.39697187,57782.0,57781.0,4.7e-07]
[1725246813057,2.42413918,57782.0,57781.0,4.7e-07]
[1725246813558,2.42413918,57782.0,57761.0,0.005]
[1725246813559,2.48648871,57777.0,57776.0,4.7e-07]
[1725246814001,2.67387923,57777.0,57776.0,4.7e-07]
[1725246814658,2.60897923,57777.0,57776.0,4.7e-07]
[1725246814916,2.61097923,57777.0,57776.0,4.7e-07]
[1725246815172,2.74055882,57777.0,57776.0,4.7e-07]
[1725246815382,2.76269869,57777.0,57776.0,4.7e-07]
[1725246815602,2.60897923,57777.0,57776.0,4.7e-07]
[1725246815824,2.18765821,57777.0,57776.0,4.7e-07]
[1725246816519,2.29126996,57777.0,57776.0,4.7e-07]
[1725246816697,2.29326996,57777.0,57776.0,4.7e-07]
[1725246817162,2.26736419,57777.0,57776.0,4.7e-07]
[1725246817364,2.26536419,57777.0,57776.0,4.7e-07]
[1725246817992,2.18765821,57777.0,57776.0,4.7e-07]
[1725246818204,2.26535684,57777.0,57776.0,4.7e-07]
[1725246818385,2.18765821,57777.0,57776.0,4.7e-07]
[1725246818605,2.26535412,57777.0,57776.0,4.7e-07]
[1725246819249,2.26735412,57777.0,57776.0,4.7e-07]
[1725246819865,2.29889184,57777.0,57776.0,4.7e-07]
[1725246820829,2.26735412,57777.0,57776.0,4.7e-07]
[1725246821288,2.26535412,57777.0,57776.0,0.08130047]
[1725246821751,2.29126996,57777.0,57776.0,0.08130047]
[1725246821994,2.18765821,57777.0,57776.0,0.08130047]
[1725246822169,6.81836521,57777.0,57776.0,0.08130047]
[1725246823218,5.88144021,57777.0,57776.0,0.08130047]
[1725246823425,5.88344021,57777.0,57776.0,0.08130047]
[1725246824660,5.98704253,57777.0,57776.0,4.7e-07]
[1725246824871,2.18965821,57777.0,57776.0,4.7e-07]
[1725246826346,2.20777006,57777.0,57776.0,4.7e-07]
[1725246827710,1.85961206,57777.0,57776.0,0.06250047]
[1725246827957,1.85961206,57777.0,57776.0,0.14130047]
[1725246828619,1.85961206,57777.0,57776.0,0.07880047]
[1725246829061,2.20577006,57777.0,57776.0,4.7e-07]
[1725246829320,1.85961206,57777.0,57776.0,4.7e-07]
[1725246829883,2.20577006,57777.0,57776.0,4.7e-07]
[1725246830064,1.85961206,57777.0,57776.0,4.7e-07]
[1725246830901,1.85961206,57777.0,57776.0,0.06620047]
[1725246832519,1.85961206,57777.0,57776.0,0.14510047]
[1725246832520,1.32966485,57777.0,57776.0,0.14510047]
[1725246832726,1.32966485,57777.0,57776.0,0.15010047]
[1725246832727,0.88350685,57777.0,57776.0,0.15010047]
[1725246833165,0.865395,57777.0,57776.0,0.15010047]
[1725246833373,0.173079,57777.0,57776.0,0.15010047]
[1725246833587,0.02798531,57782.0,57781.0,0.178067]
[1725246833796,0.346074,57791.0,57790.0,0.005]
[1725246834000,0.519111,57791.0,57790.0,0.1478]
[1725246834208,0.865185,57791.0,57790.0,0.16165491]
[1725246834396,0.865185,57791.0,57790.0,0.1478]
[1725246835459,0.519111,57791.0,57790.0,0.1478]
[1725246836792,0.542111,57791.0,57790.0,0.1478]
[1725246837208,0.1,57791.0,57790.0,0.1578]
[1725246837426,0.519066,57796.0,57795.0,0.005]
[1725246837663,0.519066,57796.0,57795.0,0.1411]
[1725246837880,0.86511,57796.0,57795.0,0.1411]
[1725246838359,0.981372,57796.0,57795.0,0.1411]
[1725246838797,0.981372,57796.0,57795.0,0.1361]
[1725246838798,1.327416,57796.0,57795.0,0.1361]
[1725246839021,1.327416,57796.0,57786.0,0.0661]
[1725246839022,0.173049,57787.0,57786.0,0.0661]
[1725246839274,2.174932,57787.0,57786.0,0.0661]
[1725246839484,2.213987,57787.0,57786.0,0.1426]
[1725246839847,2.213987,57787.0,57786.0,0.1476]
[1725246840070,2.213987,57787.0,57786.0,0.1426]
[1725246840277,2.213987,57787.0,57786.0,0.1476]
[1725246840486,1.768555,57787.0,57786.0,0.1476]
[1725246840713,1.608083,57787.0,57786.0,0.1476]
[1725246840889,1.475463,57787.0,57786.0,0.1476]
[1725246845015,1.50262215,57787.0,57786.0,0.1476]
[1725246845434,1.475463,57787.0,57786.0,0.1476]
[1725246846693,0.965245,57787.0,57786.0,0.1476]
[1725246848701,0.966063,57787.0,57786.0,0.1476]
[1725246849506,0.619965,57787.0,57786.0,0.1476]
[1725246852172,0.273867,57787.0,57786.0,0.1476]
[1725246852415,0.619965,57787.0,57786.0,0.1476]
[1725246852649,0.100818,57787.0,57786.0,0.1576]
[1725246852890,0.100818,57787.0,57786.0,0.17151544]
[1725246852891,0.273867,57787.0,57786.0,0.17151544]
[1725246853368,0.30102341,57787.0,57786.0,0.1576]
[1725246854713,0.30102341,57787.0,57786.0,0.17336]
[1725246854714,0.12797441,57787.0,57786.0,0.17336]
[1725246854934,0.02797441,57787.0,57786.0,0.17151544]
[1725246855150,0.02797441,57787.0,57786.0,0.17497612]
[1725246855357,0.02797441,57787.0,57786.0,0.34802812]
[1725246855782,0.000818,57787.0,57786.0,0.34802812]
[1725246856003,0.000818,57787.0,57786.0,0.29508125]
[1725246856254,0.173867,57787.0,57786.0,0.17151544]
[1725246856477,0.000818,57787.0,57786.0,0.17151544]
[1725246858452,0.000818,57787.0,57786.0,1.040236]
[1725246858668,0.000818,57787.0,57786.0,1.50864252]
[1725246858888,0.000818,57798.0,57797.0,0.01]
[1725246859113,0.000818,57798.0,57797.0,0.3356789]
[1725246859388,0.000818,57798.0,57797.0,0.17655027]
[1725246859628,0.000818,57798.0,57797.0,0.34956927]
[1725246859867,0.000818,57798.0,57797.0,0.17309037]
[1725246864229,0.173834,57798.0,57797.0,0.17309037]
[1725246864976,0.000818,57798.0,57797.0,0.17309037]
[1725246865196,0.173834,57798.0,57797.0,0.17309037]
[1725246871939,0.000818,57798.0,57797.0,0.17309037]
[1725246872887,0.000818,57798.0,57797.0,0.43486527]
[1725246874107,0.000818,57798.0,57797.0,1.47151933]
[1725246874320,0.000818,57798.0,57797.0,1.12548133]
[1725246875433,0.000818,57798.0,57797.0,1.04018537]
[1725246877341,0.000818,57798.0,57797.0,1.38622337]
[1725246877593,0.000818,57798.0,57797.0,1.38422337]
[1725246878952,0.000818,57798.0,57797.0,1.39122337]
[1725246879193,0.000818,57798.0,57797.0,1.73726137]
[1725246879418,0.000818,57798.0,57797.0,1.90381301]
[1725246879635,0.000818,57798.0,57797.0,2.06660222]
[1725246879847,0.000818,57798.0,57797.0,2.06460222]
[1725246880989,0.000818,57798.0,57797.0,2.07251632]
[1725246881698,0.000818,57798.0,57797.0,2.18451632]
[1725246881931,0.000818,57803.0,57802.0,1.88872521]
[1725246882135,0.000818,57803.0,57802.0,2.05727685]
[1725246882355,0.000818,57803.0,57802.0,2.07115583]
[1725246882599,0.172924,57829.0,57828.0,0.015]
[1725246882821,0.172911,57834.0,57830.0,0.0974]
[1725246883038,0.346631,57835.0,57830.0,0.0974]
[1725246883039,0.000818,57835.0,57830.0,0.12722892]
[1725246883270,0.02713686,57832.0,57830.0,0.14104415]
[1725246883515,0.02713686,57832.0,57830.0,0.66326329]
[1725246883769,0.000818,57835.0,57830.0,1.41388715]
[1725246884002,0.000818,57835.0,57830.0,1.41888715]
[1725246886727,0.000818,57835.0,57830.0,0.69037623]
[1725246886959,0.000818,57835.0,57830.0,1.03621723]
[1725246891702,0.000818,57835.0,57830.0,1.03821723]
[1725246891932,0.000818,57835.0,57830.0,1.03621723]
[1725246893078,0.000818,57835.0,57830.0,0.34453523]
[1725246893327,0.000818,57835.0,57830.0,0.28413523]
[1725246893328,0.173725,57835.0,57830.0,0.28413523]
[1725246896177,0.000818,57835.0,57830.0,0.62997623]
[1725246897037,0.000818,57835.0,57830.0,0.75006897]
[1725246897262,0.000818,57835.0,57830.0,0.62997623]
[1725246898768,0.346629,57835.0,57830.0,0.11121523]
[1725246898976,0.519536,57835.0,57830.0,0.11121523]
[1725246899209,0.519536,57835.0,57830.0,0.28413523]
[1725246899428,0.173725,57835.0,57830.0,0.28413523]
[1725246899642,0.172908,57834.0,57830.0,0.28413523]
[1725246899901,0.172908,57834.0,57830.0,0.11121523]
[1725246900349,1.128305,57831.0,57830.0,0.02881523]
[1725246900574,1.47414,57831.0,57830.0,0.02881523]
[1725246900791,1.47414,57831.0,57830.0,0.015]
[1725246901004,0.78247,57831.0,57830.0,0.015]
[1725246901243,1.128305,57831.0,57830.0,0.015]
[1725246902109,1.128305,57831.0,57830.0,0.005]
[1725246902314,1.47414,57831.0,57830.0,0.015]
[1725246902976,0.944202,57830.0,57829.0,0.005]
[1725246903189,1.004402,57830.0,57829.0,0.015]
[1725246903414,0.924802,57830.0,57829.0,0.015]
[1725246905024,0.200818,57831.0,57830.0,0.015]
[1725246905240,0.200818,57831.0,57830.0,0.55133992]
[1725246905460,0.200818,57831.0,57830.0,0.99329615]
[1725246905700,0.200818,57831.0,57830.0,1.40343715]
[1725246905929,0.200818,57831.0,57830.0,1.40543715]
[1725246906420,0.200818,57831.0,57830.0,1.41043715]
[1725246906638,0.200818,57831.0,57830.0,1.40543715]
[1725246907092,0.200818,57831.0,57830.0,1.05959615]
[1725246908897,0.200818,57831.0,57830.0,1.04201723]
[1725246909578,0.200818,57831.0,57830.0,1.04001723]
[1725246909793,0.200818,57831.0,57830.0,1.04201723]
[1725246912858,0.17277902,57838.0,57837.0,0.015]
[1725246914215,0.181072,57840.0,57839.0,0.005]
[1725246914437,0.526853,57840.0,57839.0,0.005]
[1725246914669,0.526853,57840.0,57839.0,0.01879475]
[1725246914892,0.526853,57840.0,57839.0,0.01]
[1725246915364,0.526853,57840.0,57839.0,0.02879475]
[1725246915365,0.872634,57840.0,57839.0,0.02879475]
[1725246915614,1.218415,57840.0,57839.0,0.015]
[1725246915831,1.283615,57840.0,57839.0,0.015]
[1725246916065,1.283615,57840.0,57839.0,0.01]
[1725246916284,1.360015,57840.0,57839.0,0.015]
[1725246916756,0.518689,57838.0,57837.0,0.015]
[1725246916978,1.233275,57838.0,57837.0,0.015]
[1725246917220,1.210275,57838.0,57837.0,0.015]
[1725246918333,0.981147,57838.0,57837.0,0.015]
[1725246918793,1.154043,57838.0,57837.0,0.015]
[1725246919078,0.80825,57838.0,57837.0,0.015]
[1725246919320,0.172896,57838.0,57837.0,0.015]
[1725246919551,0.00818,57840.0,57839.0,0.015]
[1725246919769,0.00818,57840.0,57839.0,0.03257892]
[1725246920000,0.00818,57840.0,57839.0,0.21926667]
[1725246920248,0.00818,57840.0,57839.0,0.04637367]
[1725246921083,0.00818,57840.0,57839.0,0.21926667]
[1725246922595,0.00818,57840.0,57839.0,0.56505367]
[1725246923923,0.00818,57840.0,57839.0,0.21926667]
[1725246924143,0.00818,57840.0,57839.0,0.56505367]
[1725246924366,0.00818,57840.0,57839.0,0.21926667]
[1725246924999,0.00818,57840.0,57839.0,0.02879475]
[1725246925209,0.00818,57840.0,57839.0,0.20168775]
[1725246926380,0.526851,57840.0,57839.0,0.02879475]
[1725246926604,0.938432,57840.0,57839.0,0.02879475]
[1725246926832,0.938432,57840.0,57839.0,0.015]
[1725246927485,1.284213,57840.0,57839.0,0.015]
[1725246928984,1.284213,57840.0,57829.0,0.63788921]
[1725246928985,0.1444,57837.0,57832.0,0.005]
[1725246929247,0.172907,57835.0,57834.0,0.015]
[1725246929481,0.172907,57835.0,57834.0,0.03065]
[1725246929710,0.345793,57838.0,57834.0,0.03065]
[1725246929711,0.345793,57838.0,57837.0,0.01]
[1725246929923,0.864482,57838.0,57837.0,0.015]
[1725246930148,0.518689,57838.0,57837.0,0.015]
[1725246930613,0.864482,57838.0,57837.0,0.015]
[1725246933521,0.864482,57838.0,57836.0,0.01]
[1725246933522,0.864497,57837.0,57836.0,0.01]
[1725246933728,1.293696,57837.0,57836.0,0.015]
[1725246934385,0.00818,57840.0,57838.0,0.01]
[1725246934606,0.181072,57840.0,57839.0,0.01]
[1725246934814,0.181072,57840.0,57839.0,0.02379475]
[1725246935026,0.526853,57840.0,57839.0,0.02379475]
[1725246935504,0.00818,57840.0,57839.0,0.02879475]
[1725246935933,0.03531079,57840.0,57839.0,0.08880415]
[1725246936169,0.03531079,57840.0,57839.0,0.02879475]
[1725246936611,0.03531079,57840.0,57839.0,0.20168775]
[1725246936820,0.03531079,57840.0,57839.0,0.54747475]
[1725246937282,0.00818,57840.0,57839.0,0.20168775]
[1725246939472,0.00818,57840.0,57839.0,0.62737475]
[1725246939694,0.00818,57840.0,57839.0,0.74778739]
[1725246940139,0.00818,57840.0,57839.0,1.09357439]
[1725246941576,0.00818,57840.0,57839.0,0.54747475]
[1725246941810,0.00818,57840.0,57839.0,0.89326175]
[1725246942031,0.00818,57840.0,57839.0,0.54747475]
[1725246942457,0.00818,57840.0,57839.0,0.89326175]
[1725246943837,0.00818,57840.0,57839.0,0.95706175]
[1725246944065,0.00818,57840.0,57839.0,1.07700683]
[1725246944296,0.00818,57845.0,57844.0,1.04018121]
[1725246944752,0.00818,57845.0,57844.0,1.05396459]
[1725246945231,0.00818,57845.0,57844.0,1.19266459]
[1725246945467,0.00818,57845.0,57844.0,1.34670785]
[1725246946159,0.00818,57845.0,57844.0,1.69446485]
[1725246947601,0.00818,57845.0,57844.0,1.69246485]
[1725246949533,0.00818,57845.0,57844.0,1.53842159]
[1725246953343,0.00818,57845.0,57844.0,1.54042159]
[1725246953817,0.00818,57845.0,57844.0,1.53842159]
[1725246954988,0.00818,57845.0,57844.0,1.54042159]
[1725246955226,0.00818,57845.0,57844.0,1.53842159]
[1725246955454,0.00818,57845.0,57844.0,1.69246375]